bitfinex-derivatives/quotes_SOLF0:USTF0_20250614
["timestamp","ask_amount","ask_price","bid_price","bid_amount"]
[1749905465485,3.40881202,145.28,145.25,0.04621454]
[1749905465787,3.35995301,145.26,145.21,34.72]
[1749905466594,0.04423078,145.25,145.22,0.05097454]
[1749905467286,6.8828,145.24,145.22,0.05097454]
[1749905467888,6.92623078,145.25,145.22,6.93427454]
[1749905468786,6.8826,145.24,145.22,0.05097454]
[1749905468987,0.04423078,145.25,145.22,0.05097454]
[1749905469990,6.8828,145.24,145.22,0.05097454]
[1749905470290,0.04423078,145.25,145.22,0.05097454]
[1749905471192,6.8829,145.23,145.22,0.05097454]
[1749905471393,0.04423078,145.25,145.22,0.05097454]
[1749905471991,6.92653078,145.25,145.22,6.93417454]
[1749905472387,0.04423078,145.25,145.22,6.93417454]
[1749905473592,6.92633078,145.25,145.23,6.8829]
[1749905474086,0.04423078,145.25,145.23,6.8829]
[1749905474993,6.92643078,145.25,145.22,0.05097454]
[1749905475594,6.92643078,145.25,145.22,6.93407454]
[1749905476294,0.04423078,145.25,145.23,6.8829]
[1749905478088,6.92623078,145.25,145.22,6.93417454]
[1749905478898,0.04423078,145.25,145.23,6.8828]
[1749905479499,6.92623078,145.25,145.22,6.93417454]
[1749905481397,0.04423078,145.25,145.22,6.93417454]
[1749905482493,0.04423078,145.25,145.23,6.8828]
[1749905483598,0.04423078,145.25,145.22,6.93417454]
[1749905483899,6.92623078,145.25,145.22,6.93417454]
[1749905485000,6.8825,145.24,145.22,0.05097454]
[1749905485498,6.92643078,145.25,145.22,6.93407454]
[1749905486400,6.92643078,145.25,145.23,6.8829]
[1749905489210,6.92643078,145.25,145.22,6.93417454]
[1749905489400,0.04423078,145.25,145.22,0.05097454]
[1749905489702,0.04423078,145.25,145.23,6.8828]
[1749905491405,6.92623078,145.25,145.22,6.93417454]
[1749905492801,0.04423078,145.25,145.22,0.05097454]
[1749905493501,6.8828,145.24,145.22,6.93437454]
[1749905493805,0.04423078,145.25,145.22,6.93437454]
[1749905495406,0.04423078,145.25,145.22,0.05097454]
[1749905495711,3.35995301,145.23,145.18,8.57716838]
[1749905495901,10.62013309,145.26,145.16,34.56]
[1749905495902,6.8854,145.18,145.16,34.56]
[1749905496705,0.05258479,145.18,145.16,41.49776822]
[1749905503204,0.05258479,145.18,145.16,34.61156822]
[1749905503614,0.05258479,145.18,145.16,0.05156822]
[1749905503615,6.8858,145.17,145.16,0.05156822]
[1749905505110,6.93798479,145.18,145.16,0.05156822]
[1749905505913,6.8857,145.17,145.16,0.05156822]
[1749905512613,6.93808479,145.18,145.16,0.05156822]
[1749905512810,0.05258479,145.18,145.16,0.05156822]
[1749905513216,0.05258479,145.18,145.16,6.93746822]
[1749905513721,0.05258479,145.18,145.17,41.2857]
[1749905513915,5.67235301,145.24,145.17,34.4]
[1749905514225,6.8836,145.22,145.19,6.8847]
[1749905514821,0.05246207,145.22,145.2,6.8843]
[1749905515515,6.93586207,145.22,145.19,6.92860487]
[1749905515710,0.05246207,145.22,145.19,6.92860487]
[1749905516326,0.05246207,145.22,145.2,6.8842]
[1749905517827,4.5148,145.29,145.21,34.4]
[1749905517828,38.9148,145.29,145.21,34.4]
[1749905518021,36.7229,145.29,145.22,3.35995301]
[1749905518222,36.7229,145.29,145.22,10.24315301]
[1749905518722,6.8822,145.25,145.24,0.04651059]
[1749905525429,6.8843,145.2,145.18,34.4]
[1749905525622,3.35995301,145.23,145.18,34.4]
[1749905525824,3.35995301,145.23,145.15,38.8497]
[1749905526528,0.04737943,145.2,145.18,0.04494112]
[1749905527726,6.8848,145.19,145.18,0.04494112]
[1749905535942,10.24475301,145.19,145.18,4.112e-05]
[1749905537042,14.99748499,145.19,145.18,4.112e-05]
[1749905537542,10.24475301,145.19,145.18,4.112e-05]
[1749905543847,6.8848,145.19,145.18,4.112e-05]
[1749905551366,20.71197943,145.2,145.18,4.112e-05]
[1749905552264,6.8848,145.19,145.18,4.112e-05]
[1749905555570,6.8876,145.13,145.1,10.76516838]
[1749905555770,3.35995301,145.16,145.09,430.86]
[1749905555975,3.35995301,145.16,145.09,437.7495]
[1749905556161,6.8882,145.12,145.09,437.7495]
[1749905556668,6.93992077,145.12,145.09,437.79376261]
[1749905557373,0.05172077,145.12,145.1,6.889]
[1749905558374,6.93982077,145.12,145.1,6.889]
[1749905558682,6.93982077,145.12,145.09,437.79356261]
[1749905560770,6.93982077,145.12,145.1,6.889]
[1749905560972,0.05172077,145.12,145.1,6.889]
[1749905563480,6.93992077,145.12,145.09,437.79356261]
[1749905564586,6.93992077,145.12,145.09,570.93356261]
[1749905565580,6.93992077,145.12,145.1,6.889]
[1749905565980,0.05172077,145.12,145.09,564.04426261]
[1749905566181,0.05172077,145.12,145.09,570.93356261]
[1749905566876,0.05172077,145.12,145.09,430.90426261]
[1749905567084,3.41167378,145.12,145.09,0.04426261]
[1749905567271,0.05172077,145.12,145.09,0.04426261]
[1749905567874,6.8888,145.11,145.09,0.04426261]
[1749905570083,6.8891,145.1,145.09,0.04426261]
[1749905584594,6.8891,145.1,145.09,6.261e-05]
[1749905584595,10.24905301,145.1,145.09,6.261e-05]
[1749905585393,6.8929,145.02,145.01,8.57716838]
[1749905585597,3.35995301,145.05,144.99,34.42]
[1749905585991,6.8932,145.02,144.99,41.3142]
[1749905586186,3.35995301,145.05,144.99,41.3142]
[1749905586393,3.35995301,145.05,145.01,0.0479519]
[1749905586602,0.0467273,145.03,145.01,0.0479519]
[1749905586803,6.8929,145.02,145.01,0.0479519]
[1749905591693,6.8938,145.0,144.99,34.42]
[1749905591897,3.40668031,145.03,144.96,34.42]
[1749905592103,3.40668031,145.03,144.96,41.3157]
[1749905592104,3.35995301,145.03,144.96,41.3157]
[1749905592301,6.8946,144.99,144.96,41.3157]
[1749905592799,6.93925544,144.99,144.96,41.36023764]
[1749905598802,0.04465544,144.99,144.97,3.35995301]
[1749905599600,0.04465544,144.99,144.98,6.8948]
[1749905599802,37.77995301,145.07,144.97,3.35995301]
[1749905600108,37.77995301,145.07,144.99,3.35995301]
[1749905600409,3.35995301,145.05,144.99,6.8943]
[1749905600798,0.04644956,145.03,145.01,0.04964121]
[1749905600999,6.93924956,145.03,145.01,0.04964121]
[1749905601202,0.04644956,145.03,145.01,0.04964121]
[1749905601408,6.93884956,145.03,145.01,0.04964121]
[1749905602110,0.04644956,145.03,145.01,6.94294121]
[1749905602312,0.04644956,145.03,145.01,0.04964121]
[1749905603009,6.93884956,145.03,145.01,0.04964121]
[1749905603207,0.04644956,145.03,145.01,0.04964121]
[1749905603610,6.93904956,145.03,145.01,0.04964121]
[1749905604511,0.04644956,145.03,145.01,0.04964121]
[1749905605010,6.8929,145.02,145.01,0.04964121]
[1749905605415,0.04644956,145.03,145.01,0.04964121]
[1749905605610,6.8929,145.02,145.01,0.04964121]
[1749905606208,6.93904956,145.03,145.01,0.04964121]
[1749905608407,0.04644956,145.03,145.01,6.94294121]
[1749905608715,0.04644956,145.03,145.01,0.04964121]
[1749905609021,0.04644956,145.03,145.02,6.8929]
[1749905612112,0.04644956,145.03,145.01,6.94264121]
[1749905613613,0.04644956,145.03,145.02,6.8929]
[1749905615519,0.04644956,145.03,145.01,0.04964121]
[1749905615816,0.04644956,145.03,145.0,36.5946]
[1749905615817,3.40640257,145.03,144.96,34.42]
[1749905616016,3.35995301,145.01,144.96,34.42]
[1749905616816,0.04853326,145.0,144.97,0.04582267]
[1749905617415,6.8948,144.98,144.97,0.04582267]
[1749905620223,0.04853326,145.0,144.97,0.04582267]
[1749905620916,6.8943,144.99,144.97,6.94082267]
[1749905621524,6.8943,144.99,144.97,0.04582267]
[1749905622226,0.04853326,145.0,144.97,0.04582267]
[1749905623124,6.8946,144.99,144.97,0.04582267]
[1749905623619,6.8946,144.99,144.97,6.94102267]
[1749905623824,6.8946,144.99,144.97,0.04582267]
[1749905624824,6.8943,144.99,144.97,0.04582267]
[1749905626121,0.04853326,145.0,144.97,0.04582267]
[1749905627118,6.8948,144.98,144.97,0.04582267]
[1749905629612,0.04853326,145.0,144.97,6.94092267]
[1749905630322,6.8943,144.99,144.97,0.04582267]
[1749905630824,0.04853326,145.0,144.97,0.04582267]
[1749905631726,6.8945,144.99,144.97,0.04582267]
[1749905632030,0.04853326,145.0,144.97,0.04582267]
[1749905632420,6.8948,144.98,144.97,0.04582267]
[1749905634131,6.94243326,145.0,144.97,0.04582267]
[1749905634328,0.04853326,145.0,144.97,0.04582267]
[1749905634631,6.8948,144.98,144.97,0.04582267]
[1749905638834,6.8945,144.99,144.97,0.04582267]
[1749905641535,6.8948,144.98,144.97,0.04582267]
[1749905643937,6.8944,144.99,144.97,0.04582267]
[1749905644442,6.8948,144.98,144.97,0.04582267]
[1749905645544,6.8948,144.98,144.93,45.74632575]
[1749905645545,6.8967,144.94,144.93,2.74915737]
[1749905645734,6.8967,144.94,144.81,90.15157615]
[1749905645735,3.37431829,144.94,144.85,42.99716838]
[1749905646036,3.37431829,144.96,144.89,6.8986]
[1749905646439,3.37431829,144.96,144.9,6.8984]
[1749905646639,0.05267648,144.94,144.91,0.04738177]
[1749905647038,0.05267648,144.94,144.93,6.8972]
[1749905647339,38.8533,145.01,144.93,3.37431829]
[1749905647539,36.5918,145.01,144.94,34.42]
[1749905647744,6.8947,144.99,144.94,34.42]
[1749905648142,2.1718,145.01,144.94,34.42]
[1749905648341,2.1718,145.01,144.96,0.05214878]
[1749905648641,0.04913259,144.99,144.96,0.05214878]
[1749905649844,0.04913259,144.99,144.97,6.895]
[1749905650244,0.04913259,144.99,144.96,0.05214878]
[1749905650444,0.04913259,144.99,144.98,6.8948]
[1749905651847,0.04913259,144.99,144.98,41.3148]
[1749905652036,6.8921,145.04,145.0,6.8936]
[1749905652238,42.56141829,145.06,145.0,6.8936]
[1749905653149,0.05051048,145.04,145.02,0.05162072]
[1749905654032,6.94281048,145.04,145.02,0.05162072]
[1749905655849,6.8924,145.03,145.02,0.05162072]
[1749905656547,6.94261048,145.04,145.02,0.05162072]
[1749905657142,0.05051048,145.04,145.02,0.05162072]
[1749905657739,6.94281048,145.04,145.02,0.05162072]
[1749905661348,0.05051048,145.04,145.02,0.05162072]
[1749905661649,0.05051048,145.04,145.02,6.94452072]
[1749905662150,0.05051048,145.04,145.02,0.05162072]
[1749905662944,0.05051048,145.04,145.02,6.94452072]
[1749905663146,0.05051048,145.04,145.02,0.05162072]
[1749905664151,0.05051048,145.04,145.02,6.94442072]
[1749905665154,0.05051048,145.04,145.03,6.8924]
[1749905666254,9.42051048,145.04,145.03,6.8924]
[1749905667256,9.42051048,145.04,145.02,34.45162072]
[1749905667257,9.42051048,145.04,145.02,41.34442072]
[1749905667758,9.42051048,145.04,145.02,34.45162072]
[1749905668158,9.42051048,145.04,145.02,0.05162072]
[1749905668458,6.8924,145.03,145.02,0.05162072]
[1749905669758,16.31251048,145.04,145.02,0.05162072]
[1749905671462,9.42051048,145.04,145.02,0.05162072]
[1749905672061,9.42051048,145.04,145.02,6.94432072]
[1749905672558,9.42051048,145.04,145.03,6.8924]
[1749905672964,135.95533823,145.11,145.03,34.4]
[1749905673367,6.89,145.09,145.05,6.8912]
[1749905673567,135.95533823,145.11,145.05,6.8912]
[1749905674167,6.93473921,145.09,145.06,0.05176454]
[1749905674362,0.04483921,145.09,145.06,0.05176454]
[1749905674565,6.8903,145.08,145.06,0.05176454]
[1749905675463,3.37431829,145.07,145.0,8.57716838]
[1749905675672,3.37431829,145.03,144.97,34.4]
[1749905675876,6.8941,145.0,144.97,34.4]
[1749905676270,3.37431829,145.03,144.97,34.4]
[1749905676470,0.05053951,145.01,144.99,0.04643097]
[1749905679180,0.05053951,145.01,144.99,6.94073097]
[1749905680183,0.05053951,145.01,145.0,6.8938]
[1749905681973,5.56421829,145.07,145.02,6.8926]
[1749905682179,6.8911,145.06,145.02,6.8926]
[1749905682882,6.8915,145.05,145.01,41.2931]
[1749905683079,0.04341033,145.04,145.02,0.04854405]
[1749905683986,0.04341033,145.04,145.02,6.94134405]
[1749905687286,0.04341033,145.04,145.03,6.8924]
[1749905688286,0.04341033,145.04,145.02,6.94114405]
[1749905688587,0.04341033,145.04,145.02,0.04854405]
[1749905688978,0.04341033,145.04,145.02,6.94114405]
[1749905691480,0.04341033,145.04,145.03,6.8924]
[1749905692588,0.04341033,145.04,145.02,10.31566234]
[1749905692985,0.04341033,145.04,145.02,3.42286234]
[1749905694686,0.04341033,145.04,145.03,6.8924]
[1749905695988,0.04341033,145.04,145.02,0.04854405]
[1749905697491,0.04341033,145.04,145.02,6.94134405]
[1749905700697,0.04341033,145.04,145.03,6.8924]
[1749905702900,166.98101994,145.11,145.05,6.8912]
[1749905703093,166.98101994,145.11,145.05,41.2912]
[1749905703293,6.8898,145.09,145.06,6.8909]
[1749905704000,6.9391219,145.09,145.06,6.94135612]
[1749905705395,3.37431829,145.08,145.06,0.05045612]
[1749905705592,0.0493219,145.09,145.01,34.4]
[1749905705796,6.8908,145.07,145.02,6.8926]
[1749905706497,3.37431829,145.08,145.03,0.04903397]
[1749905706498,6.9407722,145.06,145.03,0.04903397]
[1749905707505,6.8917,145.05,145.03,0.04903397]
[1749905707705,0.0497722,145.06,145.03,0.04903397]
[1749905707900,3.42409049,145.06,145.03,0.04903397]
[1749905708106,6.8919,145.04,145.03,0.04903397]
[1749905710305,0.0497722,145.06,145.03,6.94143397]
[1749905710703,0.0497722,145.06,145.03,0.04903397]
[1749905710902,0.0497722,145.06,145.04,8.57716838]
[1749905711203,5.71091829,145.13,145.05,34.4]
[1749905711603,6.8898,145.09,145.05,41.2911]
[1749905711804,3.36569599,145.11,145.05,34.4]
[1749905712005,6.89,145.08,145.07,0.0499759]
[1749905714706,6.94030746,145.09,145.07,0.0499759]
[1749905714907,6.94030746,145.09,145.07,6.9404759]
[1749905715111,6.94030746,145.09,145.07,0.0499759]
[1749905717508,6.89,145.08,145.07,0.0499759]
[1749905717909,6.94040746,145.09,145.07,0.0499759]
[1749905718707,6.89,145.08,145.07,0.0499759]
[1749905724410,6.94020746,145.09,145.07,0.0499759]
[1749905726117,6.89,145.08,145.07,0.0499759]
[1749905726818,6.94040746,145.09,145.07,0.0499759]
[1749905729914,0.05060746,145.09,145.07,6.9403759]
[1749905731220,6.94030746,145.09,145.07,0.0499759]
[1749905731411,0.05060746,145.09,145.07,0.0499759]
[1749905731812,0.05060746,145.09,145.07,6.9403759]
[1749905733816,0.05060746,145.09,145.08,6.89]
[1749905734222,5.54293802,145.15,145.07,3.41541392]
[1749905734424,5.54293802,145.15,145.1,6.8887]
[1749905734614,6.8875,145.14,145.1,6.8887]
[1749905735212,0.04776345,145.13,145.11,0.05004573]
[1749905735921,0.04776345,145.13,145.11,6.93834573]
[1749905736617,0.04776345,145.13,145.11,0.05004573]
[1749905736824,0.04776345,145.13,145.12,6.8881]
[1749905741326,0.04776345,145.13,145.11,3.41548375]
[1749905742631,0.04776345,145.13,145.12,6.8881]
[1749905745223,0.04776345,145.13,145.11,3.41548375]
[1749905746731,0.04776345,145.13,145.12,6.8881]
[1749905747927,0.04776345,145.13,145.11,3.41548375]
[1749905748528,0.04776345,145.13,145.12,6.8881]
[1749905763240,0.04776345,145.13,145.12,9.03974804]
[1749905767238,1.37454987,145.14,145.13,6.8876]
[1749905767443,1.37454987,145.14,145.13,43.41924804]
[1749905769944,0.04823877,145.15,145.14,6.8872]
[1749905770134,0.04823877,145.15,145.14,9.03884804]
[1749905770335,2.3815,145.24,145.14,2.15164804]
[1749905770541,6.70994804,145.22,145.18,2.15164804]
[1749905770737,6.70994804,145.22,145.18,34.38]
[1749905770940,6.8841,145.21,145.18,34.38]
[1749905771545,0.04372924,145.21,145.18,36.57882681]
[1749905771748,0.04372924,145.21,145.19,2.15164804]
[1749905772944,6.92762924,145.21,145.18,36.57882681]
[1749905773444,0.04372924,145.21,145.19,6.8844]
[1749905775747,0.04372924,145.21,145.18,41.31227877]
[1749905775938,0.04372924,145.21,145.18,34.42717877]
[1749905776546,0.04372924,145.21,145.19,6.8848]
[1749905781548,0.04372924,145.21,145.18,41.31207877]
[1749905781754,0.04372924,145.21,145.18,34.42717877]
[1749905782455,0.04372924,145.21,145.19,6.8845]
[1749905782956,0.04372924,145.21,145.18,34.42717877]
[1749905782957,0.04372924,145.21,145.2,6.8843]
[1749905783652,6.8813,145.27,145.23,6.8828]
[1749905783850,6.8813,145.27,145.24,34.34]
[1749905784044,6.8808,145.28,145.24,34.34]
[1749905784250,3.35960013,145.3,145.24,34.34]
[1749905784448,0.05105907,145.28,145.26,0.0471615]
[1749905785458,6.93195907,145.28,145.26,0.0471615]
[1749905786855,0.05105907,145.28,145.26,6.9284615]
[1749905787158,0.05105907,145.28,145.26,0.0471615]
[1749905787654,0.05105907,145.28,145.27,3.35960013]
[1749905787853,0.05105907,145.28,145.26,0.0471615]
[1749905788055,0.05105907,145.28,145.27,3.35960013]
[1749905788258,0.05105907,145.28,145.27,10.24060013]
[1749905789268,141.83191262,145.35,145.27,3.35960013]
[1749905789560,7.1098,145.36,145.3,3.35960013]
[1749905790157,0.0523909,145.34,145.32,0.04669441]
[1749905790351,0.0523909,145.34,145.32,34.38669441]
[1749905791559,0.0523909,145.34,145.32,37.74629454]
[1749905793151,0.0523909,145.34,145.32,34.38669441]
[1749905796863,6.8782,145.33,145.32,34.38669441]
[1749905797959,10.23780013,145.33,145.32,0.04669441]
[1749905798363,6.8782,145.33,145.32,0.04669441]
[1749905800669,10.23780013,145.33,145.32,0.04669441]
[1749905809286,6.8782,145.33,145.32,0.04669441]
[1749905809485,10.23780013,145.33,145.32,0.04669441]
[1749905812992,0.0523909,145.34,145.32,6.92509441]
[1749905813291,0.0523909,145.34,145.33,34.32]
[1749905814186,6.9300909,145.34,145.33,34.32]
[1749905814591,0.0523909,145.34,145.33,34.32]
[1749905820096,0.0523909,145.34,145.33,41.1982]
[1749905821092,0.0523909,145.34,145.33,34.32]
[1749905821593,0.0523909,145.34,145.33,41.1982]
[1749905824900,0.0523909,145.34,145.33,34.32]
[1749905825699,0.0523909,145.34,145.33,41.1982]
[1749905827294,0.0523909,145.34,145.33,34.32]
[1749905828806,0.0523909,145.34,145.33,41.1982]
[1749905830007,0.0523909,145.34,145.33,43.34434724]
[1749905831107,9.5,145.35,145.34,6.8777]
[1749905831310,9.5,145.35,145.34,10.22909294]
[1749905832313,9.5,145.35,145.34,6.8777]
[1749905833898,9.5,145.35,145.34,10.22909294]
[1749905834105,0.04927298,145.36,145.35,6.8773]
[1749905838618,0.04927298,145.36,145.35,13.6982]
[1749905840719,0.04927298,145.36,145.35,34.3]
[1749905843428,0.04927298,145.36,145.35,41.1773]
[1749905850626,0.04927298,145.36,145.35,43.5181]
[1749905854040,0.04927298,145.36,145.35,41.1773]
[1749905859538,0.04927298,145.36,145.35,44.52869294]
[1749905861443,7.298e-05,145.36,145.35,44.52869294]
[1749905861645,6.8736,145.43,145.39,6.875]
[1749905861836,6.8736,145.43,145.39,41.155]
[1749905862444,6.874,145.42,145.39,41.155]
[1749905862636,6.91918737,145.42,145.39,34.32726722]
[1749905863545,6.91918737,145.42,145.39,41.20246722]
[1749905864947,0.04518737,145.42,145.4,6.8748]
[1749905866142,6.91938737,145.42,145.39,41.20236722]
[1749905867849,6.91938737,145.42,145.4,6.8748]
[1749905869249,6.91938737,145.42,145.39,41.20246722]
[1749905869647,6.91938737,145.42,145.39,43.3467395]
[1749905870249,6.8745,145.41,145.39,43.3467395]
[1749905871352,6.91938737,145.42,145.39,43.3467395]
[1749905871748,6.91938737,145.42,145.39,41.20246722]
[1749905872750,6.91938737,145.42,145.4,6.8748]
[1749905872946,0.04518737,145.42,145.4,6.8748]
[1749905874748,6.91908737,145.42,145.4,6.8748]
[1749905875955,6.91908737,145.42,145.39,41.20236722]
[1749905876155,6.91908737,145.42,145.39,43.3466395]
[1749905876757,6.91908737,145.42,145.4,6.8749]
[1749905878359,0.04518737,145.42,145.41,6.8744]
[1749905878557,0.04518737,145.42,145.41,9.01867228]
[1749905878758,0.04518737,145.42,145.41,6.8744]
[1749905879262,0.04518737,145.42,145.4,9.01897228]
[1749905879559,0.04518737,145.42,145.4,2.14427228]
[1749905879754,0.04518737,145.42,145.41,6.8744]
[1749905880962,0.04518737,145.42,145.41,9.01867228]
[1749905886759,2.18945965,145.42,145.39,34.32726722]
[1749905886966,2.14427228,145.41,145.39,34.32726722]
[1749905887554,9.01897228,145.41,145.39,34.32726722]
[1749905887759,6.8747,145.41,145.39,34.32726722]
[1749905888965,6.8747,145.41,145.39,41.20266722]
[1749905890066,6.8747,145.41,145.39,34.32726722]
[1749905891061,6.8747,145.41,145.39,41.20266722]
[1749905891471,6.8747,145.41,145.39,34.32726722]
[1749905891664,6.8749,145.4,145.39,34.32726722]
[1749905892265,9.01917228,145.4,145.39,34.32726722]
[1749905896984,6.8749,145.4,145.39,34.32726722]
[1749905900086,9.01917228,145.4,145.39,0.04726722]
[1749905903682,11.4286,145.41,145.39,0.04726722]
[1749905903887,0.04518737,145.42,145.39,0.04726722]
[1749905904082,0.04518737,145.42,145.39,2.1915395]
[1749905904287,0.04518737,145.42,145.4,6.8746]
[1749905904484,0.04518737,145.42,145.39,2.1915395]
[1749905904882,0.04518737,145.42,145.39,36.4315395]
[1749905905082,0.04518737,145.42,145.41,2.14427228]
[1749905905285,0.04518737,145.42,145.39,37.63644776]
[1749905905791,0.04518737,145.42,145.41,6.8744]
[1749905907488,0.04518737,145.42,145.41,10.22358054]
[1749905913192,0.04518737,145.42,145.39,0.04726722]
[1749905913493,0.04518737,145.42,145.4,34.24]
[1749905913798,0.04518737,145.42,145.4,41.1146]
[1749905914903,0.04518737,145.42,145.4,34.24]
[1749905915489,6.91938737,145.42,145.4,34.24]
[1749905917197,0.04518737,145.42,145.4,41.1148]
[1749905918903,0.04518737,145.42,145.41,6.8744]
[1749905925605,5.57568054,145.51,145.46,6.8719]
[1749905925810,5.57568054,145.51,145.46,41.1119]
[1749905925811,3.34918054,145.51,145.46,41.1119]
[1749905926013,8.83592817,145.51,145.46,41.1119]
[1749905926309,6.8709,145.49,145.46,41.1119]
[1749905926811,6.8709,145.49,145.46,41.16424747]
[1749905926812,6.90267422,145.49,145.46,41.16424747]
[1749905927710,6.8712,145.48,145.46,34.29234747]
[1749905927910,0.03177422,145.49,145.46,34.29234747]
[1749905928414,6.8715,145.48,145.46,34.29234747]
[1749905928612,0.03177422,145.49,145.46,34.29234747]
[1749905928808,6.8716,145.47,145.46,34.29234747]
[1749905929308,0.03177422,145.49,145.48,6.8711]
[1749905935812,0.03177422,145.49,145.46,34.29234747]
[1749905937615,6.90277422,145.49,145.46,41.16414747]
[1749905938314,6.8712,145.48,145.46,41.16414747]
[1749905938614,6.8712,145.48,145.46,34.29234747]
[1749905939210,6.90267422,145.49,145.46,41.16434747]
[1749905939409,0.03177422,145.49,145.46,34.29234747]
[1749905940308,0.03177422,145.49,145.48,6.8711]
[1749905952522,7.422e-05,145.49,145.48,6.8711]
[1749905958633,7.422e-05,145.49,145.48,13.6822]
[1749905962933,7.422e-05,145.49,145.48,6.8711]
[1749905982843,7.422e-05,145.49,145.48,41.0711]
[1749905988454,7.422e-05,145.49,145.48,173.6711]
[1749905994660,9.39007422,145.49,145.48,173.6711]
[1749905996261,9.39007422,145.49,145.48,41.0711]
[1749905997659,9.39007422,145.49,145.48,43.21275928]
[1749906001568,9.39007422,145.49,145.48,34.2]
[1749906002473,9.39007422,145.49,145.48,41.0711]
[1749906003264,9.39007422,145.49,145.48,43.21275928]
[1749906004471,9.39007422,145.49,145.48,41.0711]
[1749906004670,16.26077422,145.49,145.48,34.2]
[1749906004965,9.39007422,145.49,145.48,34.2]
[1749906005968,9.39007422,145.49,145.48,41.0711]
[1749906007969,9.39007422,145.49,145.48,34.2]
[1749906008772,9.39007422,145.49,145.48,41.0711]
[1749906009163,12.73675928,145.49,145.46,0.05234747]
[1749906009361,6.8715,145.48,145.46,0.05234747]
[1749906010378,6.8716,145.47,145.46,0.05234747]
[1749906013181,6.8732,145.44,145.41,34.2]
[1749906013377,6.8732,145.44,145.41,41.0741]
[1749906013879,6.8736,145.43,145.41,34.2]
[1749906014179,0.04351138,145.43,145.41,34.24633825]
[1749906014474,9.39,145.49,145.41,37.59302331]
[1749906014679,9.39,145.49,145.41,37.54668506]
[1749906014880,9.39,145.49,145.44,6.8728]
[1749906014881,6.8719,145.47,145.44,6.8728]
[1749906015073,12.73668506,145.49,145.41,37.54668506]
[1749906015473,6.8723,145.46,145.44,0.04412672]
[1749906016776,6.8726,145.45,145.44,0.04412672]
[1749906017179,3.34668506,145.45,145.41,34.2]
[1749906018179,6.874,145.42,145.41,34.2]
[1749906019678,0.05282343,145.44,145.41,34.2]
[1749906020276,6.8736,145.43,145.41,34.2]
[1749906022085,6.92602343,145.44,145.41,41.0744]
[1749906023584,6.8735,145.43,145.41,41.0744]
[1749906026483,6.8735,145.43,145.41,34.2]
[1749906027784,6.874,145.42,145.41,34.2]
[1749906028386,3.39950849,145.44,145.4,0.04811787]
[1749906028685,5.62660849,145.44,145.4,0.04811787]
[1749906029389,6.8744,145.41,145.4,0.04811787]
[1749906036283,14.54202716,145.41,145.4,0.04811787]
[1749906036586,11.71150782,145.41,145.4,0.04811787]
[1749906036789,14.53746682,145.41,145.4,0.04811787]
[1749906036989,9.70032426,145.41,145.4,0.04811787]
[1749906037180,14.53746682,145.41,145.4,0.04811787]
[1749906037488,11.71154256,145.41,145.4,0.04811787]
[1749906037985,14.53688835,145.41,145.4,0.04811787]
[1749906038290,6.8766,145.37,145.35,429.94]
[1749906038592,6.8766,145.37,145.35,34.22]
[1749906038777,6.8762,145.38,145.35,34.22]
[1749906038982,3.34668506,145.4,145.35,34.22]
[1749906039182,7.65486851,145.39,145.35,34.22]
[1749906039384,6.92234242,145.38,145.36,0.04479444]
[1749906039580,0.04644242,145.38,145.36,0.04479444]
[1749906039784,6.8763,145.37,145.36,0.04479444]
[1749906045896,6.8775,145.35,145.32,34.22]
[1749906046485,6.8775,145.35,145.32,41.0984]
[1749906046693,3.34668506,145.35,145.32,34.22]
[1749906046893,3.39849599,145.35,145.32,34.26911419]
[1749906047099,0.05181093,145.35,145.32,34.26911419]
[1749906047396,6.92941093,145.35,145.32,41.14751419]
[1749906047690,0.05181093,145.35,145.32,41.14751419]
[1749906047894,6.92921093,145.35,145.32,41.14751419]
[1749906048699,6.8778,145.34,145.32,41.14751419]
[1749906049600,6.8778,145.34,145.32,34.26911419]
[1749906054810,6.92931093,145.35,145.32,41.14781419]
[1749906055113,0.05181093,145.35,145.32,34.26911419]
[1749906055415,6.8778,145.34,145.32,34.26911419]
[1749906057717,9.07594064,145.35,145.32,41.14771419]
[1749906058019,0.05181093,145.35,145.34,9.02442971]
[1749906058609,0.05181093,145.35,145.33,9.02462971]
[1749906058815,0.05181093,145.35,145.33,2.14662971]
[1749906059205,0.05181093,145.35,145.33,6.8782]
[1749906060915,0.05181093,145.35,145.34,6.8778]
[1749906061117,0.05181093,145.35,145.32,34.26911419]
[1749906061519,0.05181093,145.35,145.33,6.878]